bitfinex/quotes_SOLUSD_20251030
["timestamp","ask_amount","ask_price","bid_price","bid_amount"]
[1761833086915,8.97163691,186.61,186.55,8.31163691]
[1761833087110,103.4,186.63,186.53,19.29960886]
[1761833087111,8.31163691,186.62,186.57,18.1004646]
[1761833087425,8.31163691,186.61,186.58,5.35963125]
[1761833087823,0.66,186.62,186.59,9.78882769]
[1761833088616,0.66,186.62,186.57,20.592]
[1761833088937,8.31163691,186.58,186.51,9.78882769]
[1761833089128,0.66,186.62,186.5,5.36193029]
[1761833089129,8.31163691,186.53,186.5,5.36193029]
[1761833089329,8.31163691,186.51,186.43,13.40948656]
[1761833089537,8.31163691,186.5,186.44,8.31163691]
[1761833089716,20.592,186.59,186.46,8.31163691]
[1761833090038,8.31163691,186.52,186.47,9.78882769]
[1761833090438,0.66,186.51,186.47,9.78882769]
[1761833090630,0.66,186.51,186.46,9.78882769]
[1761833091212,0.66,186.51,186.44,9.78882769]
[1761833091436,8.97163691,186.51,186.47,5.36279294]
[1761833091638,8.31163691,186.5,186.46,9.78882769]
[1761833091839,8.31163691,186.5,186.44,15.15248355]
[1761833091840,8.31163691,186.48,186.44,15.15248355]
[1761833092253,8.31163691,186.46,186.37,16.32580189]
[1761833092546,8.31163691,186.46,186.35,26.48533011]
[1761833092547,0.66,186.47,186.36,28.90363691]
[1761833092718,8.31163691,186.43,186.37,18.1004646]
[1761833093137,8.31163691,186.43,186.38,9.93098926]
[1761833093524,8.97163691,186.45,186.4,0.14216157]
[1761833093839,8.31163691,186.45,186.39,27.08946833]
[1761833094043,8.97163691,186.45,186.39,27.08946833]
[1761833094336,0.66,186.44,186.39,27.08946833]
[1761833094841,8.31163691,186.47,186.42,9.93098926]
[1761833095220,0.66,186.46,186.42,9.93098926]
[1761833095828,0.66,186.46,186.44,9.93098926]
[1761833096030,29.56363691,186.49,186.44,9.93098926]
[1761833096218,0.66,186.49,186.44,18.24262617]
[1761833096428,0.66,186.49,186.46,18.24262617]
[1761833096652,5.35967771,186.58,186.46,8.45379848]
[1761833096959,0.66,186.52,186.49,0.14216157]
[1761833097113,20.592,186.58,186.49,0.14216157]
[1761833097449,8.31163691,186.55,186.49,0.14216157]
[1761833097635,8.31163691,186.55,186.51,0.14216157]
[1761833097827,8.97163691,186.57,186.53,9.93098926]
[1761833098033,0.66,186.57,186.53,9.93098926]
[1761833098234,8.97163691,186.57,186.53,9.93098926]
[1761833099138,0.66,186.56,186.53,9.93098926]
[1761833099333,8.97163691,186.56,186.53,9.93098926]
[1761833099529,8.31163691,186.55,186.53,9.93098926]
[1761833099735,8.97163691,186.55,186.53,9.93098926]
[1761833100037,8.31163691,186.55,186.49,0.14216157]
[1761833100346,8.31163691,186.5,186.45,9.78882769]
[1761833100547,8.31163691,186.48,186.46,0.14216157]
[1761833100752,8.31163691,186.47,186.45,9.78882769]
[1761833100927,8.31163691,186.46,186.43,5.36394357]
[1761833101132,13.67221469,186.55,186.43,5.36394357]
[1761833101133,8.31163691,186.44,186.43,5.36394357]
[1761833101327,8.31163691,186.44,186.41,5.36429353]
[1761833101529,8.31163691,186.44,186.41,18.7755912]
[1761833101745,8.31163691,186.5,186.43,18.1004646]
[1761833101954,8.31163691,186.5,186.42,5.3642313]
[1761833101955,8.31163691,186.46,186.42,5.3642313]
[1761833102159,8.31163691,186.43,186.42,15.15305899]
[1761833102469,8.31163691,186.43,186.42,15.29522056]
[1761833102972,20.592,186.51,186.43,9.93098926]
[1761833103256,8.31163691,186.45,186.43,9.93098926]
[1761833103485,0.66,186.54,186.45,0.14216157]
[1761833103630,8.31163691,186.54,186.49,9.93098926]
[1761833103957,0.66,186.53,186.49,5.50411629]
[1761833104162,8.31163691,186.52,186.49,5.50411629]
[1761833104468,0.66,186.53,186.49,0.14216157]
[1761833104758,8.31163691,186.5,186.49,0.14216157]
[1761833104964,8.31163691,186.5,186.49,5.50437938]
[1761833105340,8.31163691,186.52,186.5,9.93098926]
[1761833105546,8.31163691,186.53,186.51,0.14216157]
[1761833105758,0.66,186.58,186.51,0.14216157]
[1761833105939,8.31163691,186.57,186.53,9.93098926]
[1761833106342,0.66,186.58,186.53,18.24262617]
[1761833106343,8.31163691,186.58,186.53,18.24262617]
[1761833106569,0.66,186.69,186.57,8.31163691]
[1761833106880,8.31163691,186.67,186.62,0.14216157]
[1761833107166,8.31163691,186.65,186.62,0.14216157]
[1761833107677,8.31163691,186.66,186.64,0.14216157]
[1761833107833,4.26915757,186.78,186.65,0.14216157]
[1761833107834,0.66,186.69,186.65,0.14216157]
[1761833108031,20.592,186.72,186.66,0.14216157]
[1761833108235,8.31163691,186.69,186.66,0.14216157]
[1761833108431,8.31163691,186.7,186.66,0.14216157]
[1761833108843,8.31163691,186.71,186.66,0.14216157]
[1761833109259,8.31163691,186.7,186.66,0.14216157]
[1761833109455,8.31163691,186.75,186.71,9.78882769]
[1761833109666,8.31163691,186.75,186.72,0.14216157]
[1761833109939,8.31163691,186.75,186.73,5.35532587]
[1761833110166,8.31163691,186.75,186.73,18.74364054]
[1761833110365,0.71,186.78,186.74,9.93098926]
[1761833110366,8.31163691,186.76,186.74,9.93098926]
[1761833110566,8.31163691,186.75,186.74,0.14216157]
[1761833110748,8.31163691,186.75,186.7,9.78882769]
[1761833111070,0.71,186.77,186.63,9.78882769]
[1761833111071,8.31163691,186.71,186.63,9.78882769]
[1761833111241,0.71,186.74,186.63,9.78882769]
[1761833111242,8.31163691,186.68,186.64,0.14216157]
[1761833111438,8.31163691,186.65,186.62,0.53584824]
[1761833111768,8.31163691,186.63,186.59,0.72]
[1761833111979,8.31163691,186.67,186.61,8.31163691]
[1761833112134,8.31163691,186.68,186.62,9.93098926]
[1761833112338,20.592,186.73,186.62,9.93098926]
[1761833112339,8.31163691,186.66,186.62,9.93098926]
[1761833112534,8.31163691,186.66,186.65,30.52298926]
[1761833112751,0.71,186.69,186.63,9.78882769]
[1761833112957,5.35347022,186.8,186.67,20.73416157]
[1761833113255,0.71,186.76,186.69,9.93098926]
[1761833113450,8.31163691,186.71,186.68,30.52298926]
[1761833113645,0.71,186.78,186.68,30.52298926]
[1761833113851,0.71,186.81,186.72,9.78882769]
[1761833114078,8.31163691,186.77,186.73,0.14216157]
[1761833114241,8.31163691,186.78,186.76,9.93098926]
[1761833114442,8.31163691,186.79,186.76,9.93098926]
[1761833114650,8.31163691,186.8,186.76,9.93098926]
[1761833114855,0.81,186.84,186.76,9.93098926]
[1761833114856,8.31163691,186.81,186.76,9.93098926]
[1761833115190,8.31163691,186.81,186.8,9.93098926]
[1761833115978,8.31163692,186.82,186.8,15.28428566]
[1761833116281,8.97163691,186.81,186.8,0.14216157]
[1761833116657,8.31163691,186.81,186.8,0.14216157]
[1761833116987,1e-08,186.82,186.81,9.93098926]
[1761833117169,8.31163692,186.82,186.81,9.93098926]
[1761833117353,1e-08,186.82,186.81,0.14216157]
[1761833117688,8.31163692,186.82,186.81,0.14216157]
[1761833117853,1e-08,186.82,186.81,0.14216157]
[1761833118060,1e-08,186.82,186.81,5.49519406]
[1761833118673,1e-08,186.82,186.81,6.15519406]
[1761833118953,1e-08,186.82,186.81,24.7909619]
[1761833119386,1e-08,186.82,186.81,21.94912]
[1761833119564,0.1,186.84,186.83,9.78882769]
[1761833119766,0.1,186.84,186.83,30.52298926]
[1761833119969,0.1,186.84,186.83,15.28344871]
[1761833121266,5.56979501,186.84,186.83,0.14216157]
[1761833121456,5.56979501,186.84,186.81,9.78882769]
[1761833121668,5.56979501,186.84,186.82,0.14216157]
[1761833122167,0.1,186.84,186.83,9.93098926]
[1761833124177,0.1,186.84,186.83,15.28344871]
[1761833124376,0.1,186.84,186.83,21.41324372]
[1761833124978,0.1,186.85,186.84,0.14216157]
[1761833125214,0.1,186.85,186.84,15.40078427]
[1761833125365,5.56979501,186.91,186.86,0.14216157]
[1761833125563,5.56979501,186.91,186.87,9.78882769]
[1761833125564,0.1,186.91,186.87,9.78882769]
[1761833125786,5.56979501,186.91,186.88,0.14216157]
[1761833125988,5.46979501,186.9,186.88,0.14216157]
[1761833126191,5.56979501,186.91,186.89,5.35074107]
[1761833126392,0.1,186.91,186.89,5.35074107]
[1761833127022,0.1,186.91,186.9,0.14216157]
[1761833127295,5.56979501,187.01,186.94,9.93098926]
[1761833127611,0.1,187.01,187.0,5.61195658]
[1761833127899,0.1,187.01,187.0,9.93098926]
[1761833128292,0.1,187.01,187.0,15.27858284]
[1761833128607,6.12979501,187.1,187.02,0.14216157]
[1761833128785,5.46979501,187.1,187.05,9.78882769]
[1761833129094,0.66,187.15,187.08,0.14216157]
[1761833129399,5.46979501,187.12,187.08,0.14216157]
[1761833130199,0.66,187.14,187.1,0.14216157]
[1761833130398,5.46979501,187.11,187.02,1.19470217]
[1761833130610,5.46979501,187.09,187.06,9.93098926]
[1761833130896,5.46979501,187.11,187.03,9.78882769]
[1761833131085,20.592,187.11,186.98,9.78882769]
[1761833131267,0.66,187.1,186.98,15.13699326]
[1761833131466,5.46979501,187.03,186.98,15.13699326]
[1761833131668,5.46979501,187.03,186.98,20.60678827]
[1761833131880,0.66,187.06,186.98,33.97720221]
[1761833132086,0.66,187.06,186.99,0.14216157]
[1761833132284,0.66,187.09,187.01,0.14216157]
[1761833132498,0.66,187.13,187.07,0.14216157]
[1761833132674,0.66,187.13,187.07,5.61195658]
[1761833132675,5.46979501,187.13,187.07,5.61195658]
[1761833132869,5.46979501,187.13,187.09,0.14216157]
[1761833133105,5.46979501,187.11,187.09,0.14216157]
[1761833133444,20.592,187.16,187.09,0.14216157]
[1761833133613,5.46979501,187.13,187.09,0.14216157]
[1761833133912,5.341595,187.21,187.09,0.14216157]
[1761833134071,5.46979501,187.14,187.09,0.14216157]
[1761833134266,5.46979501,187.13,187.11,0.14216157]
[1761833134494,5.46979501,187.12,187.08,9.93098926]
[1761833134699,5.46979501,187.1,187.08,9.93098926]
[1761833135201,5.46979501,187.11,187.08,9.93098926]
[1761833135412,5.46979501,187.11,187.08,0.14216157]
[1761833135569,5.46979501,187.09,186.99,0.66]
[1761833135775,0.66,187.1,187.01,9.78882769]
[1761833135776,5.46979501,187.04,187.01,9.78882769]
[1761833135974,5.46979501,187.02,187.0,5.34759358]
[1761833136197,20.592,187.08,187.0,18.71657753]
[1761833136401,5.46979501,187.03,187.0,13.36898395]
[1761833136801,20.592,187.08,186.99,9.78882769]
[1761833137077,13.35982307,187.13,186.99,9.78882769]
[1761833137078,5.46979501,187.06,187.02,0.14216157]
[1761833137602,20.592,187.12,187.02,0.14216157]
[1761833137603,20.592,187.1,187.02,0.14216157]
[1761833137812,5.46979501,187.06,187.02,0.14216157]
[1761833138012,5.46979501,187.05,187.02,0.14216157]
[1761833138443,20.592,187.1,187.04,9.93098926]
[1761833138636,5.46979501,187.05,187.04,0.14216157]
[1761833138805,0.66,187.09,187.01,9.78882769]
[1761833139009,5.46979501,187.02,187.0,0.14216157]
[1761833139239,5.46979501,187.01,186.97,18.71958067]
[1761833139415,0.66,187.09,186.97,18.71958067]
[1761833139416,5.46979501,187.0,186.97,18.71958067]
[1761833139943,5.46979501,187.01,186.98,9.78882769]
[1761833140123,20.592,187.08,186.99,0.14216157]
[1761833140303,0.7,187.12,187.05,9.78882769]
[1761833140511,5.46979501,187.1,187.06,0.14216157]
[1761833140817,5.46979501,187.12,187.08,0.14216157]
[1761833141241,5.46979501,187.15,187.1,0.14216157]
[1761833141535,0.7,187.19,187.1,0.14216157]
[1761833141710,5.46979501,187.15,187.1,0.14216157]
[1761833142104,5.46979501,187.16,187.1,0.14216157]
[1761833142310,5.46979501,187.16,187.12,9.93098926]
[1761833142613,5.46979501,187.17,187.12,9.93098926]
[1761833142805,20.592,187.19,187.12,9.93098926]
[1761833143110,5.46979501,187.18,187.12,15.40078427]
[1761833143336,5.46979501,187.19,187.12,9.93098926]
[1761833143639,21.292,187.22,187.15,9.78882769]
[1761833143810,0.7,187.22,187.15,9.78882769]
[1761833144009,5.46979501,187.18,187.14,0.14216157]
[1761833144720,5.46979501,187.18,187.15,9.78882769]
[1761833144922,5.46979501,187.19,187.15,9.78882769]
[1761833145135,20.592,187.2,187.13,9.78882769]
[1761833145335,5.46979501,187.17,187.14,0.14216157]
[1761833146347,5.46979501,187.19,187.14,0.14216157]
[1761833146517,5.46979501,187.18,187.14,0.14216157]
[1761833146836,0.7,187.22,187.14,5.48573877]
[1761833147040,52.79545174,187.42,187.16,0.14216157]
[1761833147211,0.7,187.29,187.21,0.14216157]
[1761833147418,5.46979501,187.29,187.23,0.14216157]
[1761833147607,0.7,187.33,187.23,0.14216157]
[1761833147816,0.7,187.33,187.25,0.14216157]
[1761833147817,5.56979501,187.31,187.25,0.14216157]
[1761833148043,0.1,187.31,187.25,0.14216157]
[1761833148340,0.1,187.31,187.27,0.14216157]
[1761833148639,0.1,187.31,187.3,0.14216157]
[1761833149826,0.1,187.31,187.3,10.62098926]
[1761833150627,0.1,187.31,187.3,21.42981256]
[1761833151442,0.1,187.31,187.3,15.96001755]
[1761833151750,0.1,187.31,187.3,16.09078427]
[1761833151916,0.1,187.4,187.34,5.61195658]
[1761833152116,0.1,187.44,187.4,9.78882769]
[1761833152353,0.1,187.44,187.43,15.40078427]
[1761833152511,0.1,187.44,187.43,21.42610945]
[1761833152716,0.1,187.44,187.43,15.95631444]
[1761833152928,0.1,187.44,187.43,21.42610945]
[1761833153345,0.2,187.48,187.43,21.42610945]
[1761833153551,0.2,187.51,187.47,30.52298926]
[1761833153759,0.04,187.51,187.49,0.14216157]
[1761833153920,0.04,187.51,187.5,9.93098926]
[1761833154123,0.04,187.51,187.5,0.14216157]
[1761833154334,5.50979501,187.51,187.5,0.14216157]
[1761833154641,0.74,187.51,187.5,0.14216157]
[1761833154845,11.54284391,187.51,187.45,0.14216157]
[1761833155043,0.7,187.5,187.42,9.78882769]
[1761833155245,21.292,187.5,187.4,15.9486227]
[1761833155429,5.46979501,187.46,187.43,0.14216157]
[1761833155626,5.46979501,187.45,187.43,0.14216157]
[1761833156017,0.7,187.49,187.43,0.14216157]
[1761833156216,0.04,187.51,187.43,0.14216157]
[1761833156533,5.46979501,187.49,187.47,9.93098926]
[1761833156732,5.50979501,187.51,187.47,9.93098926]
[1761833156933,5.46979501,187.5,187.47,9.93098926]
[1761833157331,5.46979501,187.48,187.47,0.14216157]
[1761833157620,0.7,187.49,187.42,15.12443755]
[1761833157822,0.04,187.51,187.42,21.28423256]
[1761833158035,0.04,187.51,187.46,0.14216157]
[1761833158230,5.46979501,187.47,187.46,9.93098926]
[1761833158446,0.74,187.51,187.46,5.47662613]
[1761833158649,5.46979501,187.47,187.46,5.47663292]
[1761833158950,5.50979501,187.51,187.48,0.14216157]
[1761833159258,0.04,187.51,187.49,5.46979501]
[1761833159425,0.04,187.51,187.49,0.14216157]
[1761833159624,0.04,187.51,187.5,0.83216157]
[1761833159820,0.04,187.51,187.5,0.14216157]
[1761833160130,0.04,187.51,187.5,10.62098926]
[1761833160451,0.04,187.51,187.5,15.95432259]
[1761833160825,5.50979501,187.51,187.5,0.14216157]
[1761833161153,0.04,187.51,187.5,10.62098926]
[1761833161353,0.04,187.51,187.5,9.93098926]
[1761833161559,0.04,187.51,187.5,15.95432259]
[1761833161927,0.04,187.51,187.5,15.26432259]
[1761833162155,0.04,187.51,187.5,9.93098926]
[1761833162326,5.50979501,187.51,187.5,9.78882769]
[1761833162526,5.50979501,187.51,187.41,0.53358945]
[1761833162527,6.20979501,187.51,187.43,9.78882769]
[1761833162732,0.04,187.51,187.46,5.46979501]
[1761833162929,0.04,187.51,187.45,9.78882769]
[1761833163760,5.46979501,187.49,187.45,9.78882769]
[1761833163924,0.74,187.51,187.45,9.78882769]
[1761833164125,5.46979501,187.46,187.43,9.78882769]
[1761833164628,0.7,187.46,187.42,9.78882769]
[1761833164829,0.04,187.51,187.42,9.78882769]
[1761833165032,0.04,187.51,187.5,5.46979501]
[1761833165253,0.04,187.51,187.5,9.93098926]
[1761833165567,0.04,187.51,187.5,0.14216157]
[1761833165568,0.74,187.51,187.5,0.14216157]
[1761833165854,6.20979501,187.51,187.41,5.33567712]
[1761833166156,5.46979501,187.46,187.41,5.33567712]
[1761833166356,5.46979501,187.43,187.39,5.33640171]
[1761833166570,0.7,187.5,187.37,6.00349837]
[1761833166571,5.46979501,187.41,187.37,18.67928702]
[1761833166858,13.37262226,187.51,187.37,18.67928702]
[1761833166859,0.7,187.49,187.38,9.78882769]
[1761833167062,5.46979501,187.41,187.38,9.78882769]
[1761833167225,5.46979501,187.41,187.39,0.14216157]
[1761833167430,6.16979501,187.4,187.32,10.80825326]
[1761833167645,5.46979501,187.38,187.33,0.69]
[1761833167946,0.7,187.45,187.34,10.32261652]
[1761833168144,5.46979501,187.44,187.34,9.78882769]
[1761833168363,0.7,187.45,187.35,0.14216157]
[1761833168540,5.46979501,187.39,187.35,18.68161195]
[1761833169067,0.7,187.38,187.36,9.78882769]
[1761833169239,5.46979501,187.37,187.35,5.33760341]
[1761833169441,5.46979501,187.38,187.35,15.1264311]
[1761833169653,5.46979501,187.38,187.36,9.78882769]
[1761833169961,26.06179501,187.44,187.35,5.33760341]
[1761833169962,5.46979501,187.39,187.37,0.14216157]
[1761833170161,6.16979501,187.38,187.32,9.78882769]
[1761833170369,5.46979501,187.33,187.31,5.33849833]
[1761833170562,5.46979501,187.32,187.27,9.78882769]
[1761833170741,26.06179501,187.44,187.3,5.61195658]
[1761833170942,1.99999999,187.47,187.3,5.61195658]
[1761833170943,0.7,187.43,187.34,9.78882769]
[1761833171161,5.46979501,187.4,187.35,0.14216157]
[1761833171364,5.46979501,187.41,187.36,9.78882769]
[1761833171567,5.46979501,187.39,187.35,0.14216157]
[1761833171755,5.46979501,187.44,187.35,0.14216157]
[1761833171955,0.7,187.43,187.35,0.14216157]
[1761833172140,0.7,187.43,187.36,5.46979501]
[1761833172460,5.46979501,187.42,187.37,9.93098926]
[1761833172662,5.46979501,187.42,187.4,0.14216157]
[1761833172868,5.46979501,187.41,187.4,0.14216157]
[1761833173159,5.46979501,187.41,187.35,13.34338045]
[1761833173160,6.16979501,187.41,187.37,0.14216157]
[1761833173365,5.46979501,187.39,187.37,0.14216157]
[1761833173665,5.46979501,187.38,187.3,9.78882769]
[1761833173832,5.46979501,187.33,187.3,9.78882769]
[1761833174032,18.67370678,187.43,187.29,13.34828341]
[1761833174033,5.46979501,187.32,187.29,9.78882769]
[1761833174272,5.46979501,187.34,187.29,9.78882769]
[1761833174564,5.46979501,187.34,187.19,1.99999999]
[1761833174565,5.46979501,187.31,187.26,5.34016874]
[1761833174778,20.592,187.39,187.2,0.66]
[1761833174779,5.46979501,187.27,187.2,0.66]
[1761833174949,5.46979501,187.29,187.21,5.8757545]
[1761833175143,5.46979501,187.29,187.23,5.46979501]
[1761833175341,5.46979501,187.3,187.24,5.46979501]
[1761833175846,5.46979501,187.3,187.22,1.25413096]
[1761833175847,5.46979501,187.29,187.23,9.78882769]
[1761833176144,6.13979501,187.34,187.29,9.78882769]
[1761833176358,0.67,187.37,187.3,0.14216157]
[1761833176562,5.46979501,187.34,187.3,0.14216157]
[1761833176863,5.46979501,187.31,187.21,5.341595]
[1761833177045,5.46979501,187.24,187.21,18.6955825]
[1761833177250,5.46979501,187.26,187.21,19.4155825]
[1761833177436,0.67,187.3,187.21,19.4155825]
[1761833177437,5.46979501,187.27,187.21,19.4155825]
[1761833177634,5.46979501,187.29,187.23,5.46979501]
[1761833177837,5.46979501,187.25,187.24,9.78882769]
[1761833178033,5.46979501,187.25,187.21,18.6955825]
[1761833178034,5.46979501,187.25,187.21,5.341595]
[1761833178236,5.46979501,187.25,187.21,18.6955825]
[1761833178496,0.67,187.29,187.21,24.16537751]
[1761833178667,0.67,187.33,187.29,18.68759677]
[1761833178968,0.67,187.33,187.3,0.14216157]
[1761833178969,5.46979501,187.31,187.3,0.14216157]
[1761833179264,0.67,187.33,187.26,0.14216157]
[1761833179451,0.67,187.33,187.25,9.78882769]
[1761833179452,5.46979501,187.28,187.25,9.78882769]
[1761833179648,0.67,187.32,187.24,5.34073915]
[1761833179649,8.2767541,187.27,187.24,5.34073915]
[1761833179966,8.2767541,187.28,187.25,9.78882769]
[1761833180165,0.67,187.32,187.26,0.14216157]
[1761833180552,8.2767541,187.3,187.26,0.14216157]
[1761833180753,0.67,187.32,187.29,0.14216157]
[1761833180754,8.2767541,187.31,187.29,0.14216157]
[1761833180944,8.2767541,187.3,187.29,0.14216157]
[1761833181151,8.2767541,187.3,187.25,0.14216157]
[1761833181351,8.2767541,187.3,187.27,0.14216157]
[1761833181666,8.2767541,187.29,187.27,0.14216157]
[1761833182045,8.2767541,187.29,187.24,18.06558179]
[1761833182046,8.9467541,187.28,187.2,8.2767541]
[1761833182275,8.2767541,187.23,187.21,5.34154838]
[1761833182476,8.2767541,187.25,187.22,9.78882769]
[1761833182685,8.2767541,187.26,187.22,9.78882769]
[1761833182861,0.67,187.28,187.24,9.78882769]
[1761833183061,8.2767541,187.27,187.25,0.14216157]
[1761833183581,0.67,187.31,187.26,9.78882769]
[1761833183582,8.2767541,187.31,187.26,9.78882769]
[1761833183782,8.2767541,187.31,187.26,18.06558179]
[1761833184088,8.2767541,187.29,187.23,46.11870746]
[1761833184296,8.2767541,187.27,187.24,9.93098926]
[1761833184679,8.2767541,187.28,187.24,9.93098926]
[1761833184877,8.2767541,187.25,187.24,15.27152922]
[1761833185069,8.2767541,187.25,187.21,5.341595]
[1761833185269,8.2767541,187.22,187.21,15.13042269]
[1761833185458,0.67,187.28,187.22,9.78882769]
[1761833185662,8.2767541,187.27,187.22,18.06558179]
[1761833185898,8.2767541,187.28,187.25,0.14216157]
[1761833186393,0.67,187.31,187.25,0.14216157]
[1761833186604,13.3419192,187.38,187.25,0.14216157]
[1761833186605,20.592,187.38,187.26,9.78882769]
[1761833186902,8.2767541,187.35,187.31,9.93098926]
[1761833187065,8.2767541,187.36,187.31,9.93098926]
[1761833187462,8.9467541,187.36,187.31,9.93098926]
[1761833188295,8.2767541,187.37,187.31,18.20774336]
[1761833188511,0.67,187.39,187.31,18.20774336]
[1761833188691,8.2767541,187.33,187.31,0.14216157]
[1761833188892,20.592,187.36,187.29,0.14216157]
[1761833189270,8.2767541,187.33,187.31,0.14216157]
[1761833189470,8.2767541,187.34,187.31,0.14216157]
[1761833189988,0.67,187.33,187.31,0.14216157]
[1761833190167,8.2767541,187.33,187.27,18.20774336]
[1761833190369,0.67,187.36,187.29,0.14216157]
[1761833190672,8.2767541,187.31,187.29,0.14216157]
[1761833190870,8.2767541,187.3,187.22,5.34130968]
[1761833191093,20.592,187.32,187.23,9.78882769]
[1761833191295,8.2767541,187.28,187.23,31.41814281]
[1761833191609,8.2767541,187.28,187.24,0.14216157]
[1761833192184,0.67,187.31,187.23,18.78558179]
[1761833192361,0.67,187.31,187.22,18.6945839]
[1761833192362,8.2767541,187.3,187.26,0.14216157]
[1761833192567,0.67,187.33,187.26,0.14216157]
[1761833192768,8.2767541,187.29,187.28,0.14216157]
[1761833193184,8.9467541,187.29,187.23,0.14216157]
[1761833193398,0.67,187.29,187.23,0.14216157]
[1761833193575,8.9467541,187.29,187.23,8.41891567]
[1761833193774,8.2767541,187.28,187.23,0.14216157]
[1761833194188,8.2767541,187.29,187.23,8.41891567]
[1761833194398,8.2767541,187.3,187.25,9.93098926]
[1761833194585,8.2767541,187.28,187.25,0.14216157]
[1761833194771,8.2767541,187.27,187.25,0.14216157]
[1761833194971,8.2767541,187.27,187.25,5.48255369]
[1761833195167,8.2767541,187.27,187.25,0.14216157]
[1761833195496,8.9467541,187.26,187.25,0.14216157]
[1761833195694,8.9467541,187.26,187.25,5.4826155]
[1761833195878,8.9467541,187.26,187.21,0.14216157]
[1761833196079,0.67,187.31,187.24,9.78882769]
[1761833196288,8.2767541,187.29,187.25,0.14216157]
[1761833196478,8.2767541,187.27,187.25,0.14216157]
[1761833196679,18.67961786,187.37,187.25,0.14216157]
[1761833196680,8.2767541,187.29,187.25,0.14216157]
[1761833196876,0.67,187.3,187.27,0.14216157]
[1761833196877,8.2767541,187.28,187.27,0.14216157]
[1761833197396,8.9467541,187.28,187.22,5.48347125]
[1761833197602,8.2767541,187.26,187.22,15.27229894]
[1761833197806,5.33899848,187.31,187.28,0.33]
[1761833197983,8.2767541,187.29,187.28,0.33]
[1761833198412,8.2767541,187.29,187.14,0.72]
[1761833198413,8.2767541,187.29,187.15,28.49032481]
[1761833198702,18.68585662,187.31,187.16,8.2767541]
[1761833198703,8.2767541,187.21,187.16,8.2767541]
[1761833198903,8.2767541,187.21,187.16,0.86216157]
[1761833199111,8.2767541,187.21,187.16,8.9967541]
[1761833199298,5.34048956,187.25,187.16,0.72]
[1761833199622,5.33874325,187.31,187.17,9.78882769]
[1761833199778,8.2767541,187.23,187.19,0.14216157]
[1761833200388,0.69,187.26,187.19,18.88774336]
[1761833200603,8.2767541,187.25,187.19,18.88774336]
[1761833200804,8.2767541,187.22,187.19,0.14216157]
[1761833201112,8.2767541,187.33,187.16,9.78882769]
[1761833201276,8.2767541,187.22,187.19,0.14216157]
[1761833201477,8.2767541,187.23,187.17,18.06558179]
[1761833201805,8.2767541,187.23,187.18,0.14216157]
[1761833202011,8.2767541,187.19,187.14,9.78882769]
[1761833202179,8.2767541,187.15,187.08,5.34526535]
[1761833202383,8.2767541,187.13,187.08,13.62201945]
[1761833202596,8.2767541,187.14,187.09,9.78882769]
[1761833202906,6.03222855,187.19,187.08,9.78882769]
[1761833203084,8.2767541,187.11,187.08,9.78882769]
[1761833203285,8.2767541,187.11,187.06,8.9567541]
[1761833203286,8.2767541,187.11,187.07,18.70951721]
[1761833203483,8.2767541,187.1,187.07,18.70951721]
[1761833203682,8.2767541,187.08,187.04,9.78882769]
[1761833203910,8.2767541,187.07,187.03,5.34673581]
[1761833204080,0.69,187.17,187.04,9.93098926]
[1761833204282,8.2767541,187.14,187.05,0.14216157]
[1761833204484,0.69,187.18,187.09,8.2767541]
[1761833204678,8.2767541,187.11,187.08,0.14216157]
[1761833204905,8.2767541,187.2,187.06,0.68]
[1761833204906,8.2767541,187.1,187.06,0.68]
[1761833205084,8.2767541,187.1,187.06,9.78882769]
[1761833205293,0.69,187.14,187.06,9.78882769]
[1761833205294,8.2767541,187.11,187.06,18.74558179]
[1761833205507,8.2767541,187.11,187.06,15.13470601]
[1761833205805,18.69757999,187.19,187.01,0.2]
[1761833205806,8.2767541,187.07,187.02,13.6237758]
[1761833206004,8.15670251,187.06,187.02,5.3470217]
[1761833206493,8.15670251,187.06,187.02,6.0270217]
[1761833206686,0.69,187.13,187.05,8.2767541]
[1761833207006,8.2767541,187.13,187.08,0.14216157]
[1761833207192,8.2767541,187.14,187.08,9.93098926]
[1761833207393,8.2767541,187.13,187.08,18.06558179]
[1761833207587,8.2767541,187.13,187.09,0.14216157]
[1761833207777,8.2767541,187.14,187.09,0.14216157]
[1761833207983,8.2767541,187.16,187.12,0.14216157]
[1761833208482,8.2767541,187.17,187.12,9.09891567]
[1761833208725,8.2767541,187.18,187.12,9.09891567]
[1761833209019,8.2767541,187.2,187.14,18.20774336]